Workbook

Sheet Services-Produits
A1: Produit | B1: Price
A2: Abbott Freestyle 2 | B2: 91.4
A3: Abbott Sensor | B3: 65.3
A4: Bactoflor-2023 | B4: 69.8
A5: Biotin | B5: 37.25
A6: Biotin + NaCl | B6: 37.25
A7: B-Kompleks | B7: 46.8
A8: Black cumin capsules | B8: 34.8
A9: Bosvene Akba | B9: 215.11
A10: Cholin Inject | B10: 43
A11: C-Intercell 650 mg Vitamin C, 90 Kapseln | B11: 27.99
A12: Curcumin + NaCl 0,9% | B12: 116.22
A13: Curcumin 150 mg | B13: 229.2
A14: curcumin 75 mg | B14: 116.22
A15: E-Inject | B15: 41.2
A16: Epinativ Injection | B16: 133.61
A17: Face treatment Chin contouring | B17: 600
A18: Fermanose | B18: 46.2
A19: Fiber-Intercell | B19: 40.49
A20: Gut Microbiome Therapy | B20: 6912.5
A21: Gynophilus | B21: 19.8
A22: Gynophylus | B22: 19.8
A23: Hepar | B23: 43.7
A24: Hydroxiprolin | B24: 68.9
A25: Hypericin | B25: 198.7
A26: Immunocare | B26: 220
A27: Immunocare, personalised | B27: 195.7
A28: Infraorbital | B28: 600
A29: Infusion: Curcumin 75 mg | B29: 116.22
A30: Infusion: Nicotiamide | B30: 179.8
A31: Infusion: Shoga Öl | B31: 670
A32: Jantung (Herz) | B32: 584.5
A33: K2 & D3 | B33: 34.7
A34: Kantong kemih (Harnblase) | B34: 381.35
A35: Laetia | B35: 45.3
A36: Liserotota | B36: 345.3
A37: Liv 52 | B37: 14.9
A38: Magentropfen | B38: 23
A39: Magnesium | B39: 25.45
A40: Magnesium 1000 mg | B40: 34.68
A41: Magnesium Intercell | B41: 15.1
A42: Memoserin 90 Kapseln | B42: 67.7
A43: Microbiome | B43: 74.95
A44: Microbiome body lotion | B44: 29.9
A45: Microcare 4 months | B45: 571.05
A46: Microniome face serum | B46: 69.9
A47: Muskulatur (Otot) | B47: 286.4
A48: NAD+ | B48: 219.66
A49: Neuro Amino | B49: 163.2
A50: Nicotinamide | B50: 179.8
A51: NMN, Rapamune, Sildenafil & Tadalafil | B51: 67.8
A52: Oliphenolia | B52: 183.51
A53: Oliphenolia + NaCl 0,9% 150 ml | B53: 183.51
A54: Omega 7 | B54: 82.6
A55: Omega 7.0 | B55: 81.35
A56: Otak kecil (Kleinhirn) | B56: 288
A57: Ozempic | B57: 129.8
A58: Phenylalanine | B58: 106.4
A59: Phospolipide | B59: 31.28
A60: Prodigest | B60: 72.35
A61: Q10 i.v. sensitive | B61: 178.8
A62: Reservatrol + NaCl 0,9% 300 ml | B62: 178
A63: Resveratrol | B63: 178
A64: Riboflavin | B64: 127.4
A65: RNA | B65: 516.7
A66: RNA Heart | B66: 516.7
A67: RNA Injections 4 vials | B67: 516.7
A68: RNA Thymus | B68: 516.7
A69: Salvans | B69: 13.05
A70: Selenium | B70: 41.6
A71: Senolytics mixture | B71: 670
A72: Senolytics Mixture | B72: 670
A73: Spermidin | B73: 182.35
A74: Tadalafil-Mepha 10 mg | B74: 115
A75: Tadalafil-Mepha 2.5 mg | B75: 115
A76: Tadalafil-Mepha 5 mg | B76: 115
A77: Tamsulosin | B77: 59.9
A78: Testicle | B78: 372.45
A79: Thymus | B79: 516.7
A80: Ventrisana | B80: 19.2
A81: Vistabel 3 zones | B81: 750
A82: Vit C | B82: 27.99
A83: Vit D3 | B83: 37
A84: Vit D3 | B84: 29.8
A85: Vit E Inject I.M.
A86: Vit, B Komplex | B86: 46.8
A87: Vit. C, Zn | B87: 21.4
A88: Vit. E IM
A89: Vit-C Intercell | B89: 27.99
A90: Xanax | B90: 42.7
A91: Zentra inject | B91: 60
A92: Gut Microbiome Therapy | B92: 7199.75
A93: Infusion:
A94: Injection:
A95: Infusion & Injections:
A96: Protokoll Lösung 1 | B96: 147.2
A97: Artesunat | B97: 67.2
A98: Vit B12 | B98: 8.1
A99: RNA Kidney | B99: 438.15
A100: RNA Liver | B100: 629.45
A101: Bactoflor Kinder | B101: 35.74
A102: Supplement & Medication:
A103: Microcare personalised
A104: Abbott Freestyle libre | B104: 91.4
A105: Abbott Freestyle libre 2 sensor 14 days | B105: 65.3
A106: Jardiance | B106: 662.8
A107: Microcare
A108: Bactoflor | B108: 47.8
A109: Xarelto | B109: 42.15
A110: Repatha | B110: 233.55
A111: Face cream
A112: Cleanser
A113: Oregano oil
A114: Immune infusion

Sheet Reference
A3: Invoice: 55H-92401004
A4: 04.02.2024
C5: Treatment by
C6: Dr. Roger Gmür
C7: Zürich
A14: Description | B14: Qty | C14: Price | D14: Amount
A17: Gut Microbiome Therapy | B17: 4 | C17: =IFERROR(VLOOKUP(A17,'Services-Produits'!A1:B119,2,FALSE),"") -> 6912.5 | D17: =IFERROR(B17*C17,"") -> 27650
C18: =IFERROR(VLOOKUP(A18,'Services-Produits'!A2:B120,2,FALSE),"") ->  | D18: =IFERROR(B18*C18,"") -> 
C19: =IFERROR(VLOOKUP(A19,'Services-Produits'!A3:B121,2,FALSE),"") -> 
C20: =IFERROR(VLOOKUP(A20,'Services-Produits'!A4:B122,2,FALSE),"") -> 
C21: =IFERROR(VLOOKUP(A21,'Services-Produits'!A5:B123,2,FALSE),"") -> 
C22: =IFERROR(VLOOKUP(A22,'Services-Produits'!A6:B124,2,FALSE),"") -> 
C23: =IFERROR(VLOOKUP(A23,'Services-Produits'!A7:B125,2,FALSE),"") -> 
C24: =IFERROR(VLOOKUP(A24,'Services-Produits'!A8:B126,2,FALSE),"") -> 
C25: =IFERROR(VLOOKUP(A25,'Services-Produits'!A9:B127,2,FALSE),"") -> 
C26: =IFERROR(VLOOKUP(A26,'Services-Produits'!A10:B128,2,FALSE),"") -> 
C27: =IFERROR(VLOOKUP(A27,'Services-Produits'!A11:B129,2,FALSE),"") -> 
C28: =IFERROR(VLOOKUP(A28,'Services-Produits'!A12:B130,2,FALSE),"") -> 
C29: =IFERROR(VLOOKUP(A29,'Services-Produits'!A13:B131,2,FALSE),"") -> 
C30: =IFERROR(VLOOKUP(A30,'Services-Produits'!A14:B132,2,FALSE),"") -> 
C31: =IFERROR(VLOOKUP(A31,'Services-Produits'!A8:B126,2,FALSE),"") -> 
C32: =IFERROR(VLOOKUP(A32,'Services-Produits'!A9:B127,2,FALSE),"") -> 
C33: =IFERROR(VLOOKUP(A33,'Services-Produits'!A10:B128,2,FALSE),"") -> 
C34: =IFERROR(VLOOKUP(A34,'Services-Produits'!A11:B129,2,FALSE),"") -> 
C35: =IFERROR(VLOOKUP(A35,'Services-Produits'!A12:B130,2,FALSE),"") -> 
C36: =IFERROR(VLOOKUP(A36,'Services-Produits'!A13:B131,2,FALSE),"") -> 
C37: =IFERROR(VLOOKUP(A37,'Services-Produits'!A14:B132,2,FALSE),"") -> 
A38: Total in CHF | D38: =SUM(D17:D37) -> 27650
A40: Thank you very much for your trust!

Sheet Patients
A1: Adex Yudiswan | D1: Jakarta | E1: Indonesia | F1: M | G1: 1974-12-03 | H1: SM
A2: Agus Andriyanto | D2: Jakarta | E2: Indonesia | F2: M | G2: 1967-02-16 | H2: SM
A3: Armand Wahyudi Hartono | D3: Jakarta | E3: Indonesia | F3: M | G3: 1975-05-20 | H3: SM
A4: Budi Satrio | D4: Jakarta | E4: Indonesia | F4: M | G4: 1976-05-31 | H4: SBL
A5: Chan Choi Moi | D5: Jakarta | E5: Indonesia | F5: F | G5: 1972-04-28 | H5: SM
A6: Deddy Prasetyo | D6: Jakarta | E6: Indonesia | F6: M | G6: 1968-07-26 | H6: SM
A7: Dian Suri Iriani | D7: Jakarta | E7: Indonesia | F7: F | G7: 1979-08-02 | H7: SBL
A8: Dobias Iskandar | D8: Jakarta | E8: Indonesia | F8: M | G8: 1965-11-16 | H8: SM
A9: Eileen Patricia Hartono | D9: Jakarta | E9: Indonesia | F9: F | G9: 1973-05-01 | H9: SBL
A10: Erminda Melayeni | D10: Jakarta | E10: Indonesia | F10: F | G10: 1975-10-25 | H10: SM
A11: Escy Soeleiman | D11: Jakarta | E11: Indonesia | F11: F | G11: 1965-12-09 | H11: SBL
A12: Evy Celiyanti | D12: Jakarta | E12: Indonesia | F12: F | G12: 1972-03-07 | H12: SM
A13: Herman Herry Adranacus | D13: Jakarta | E13: Indonesia | F13: M | G13: 1962-11-26 | H13: SM
A14: Isandi Harahap | D14: Jakarta | E14: Indonesia | F14: M | G14: 1958-12-10 | H14: SBL
A15: Karyoto | D15: Jakarta | E15: Indonesia | F15: M | G15: 1968-10-27 | H15: SBL
A16: Lina Iskandar | D16: Jakarta | E16: Indonesia | F16: F | G16: 1970-06-25 | H16: SBL
A17: Martha Dwi Maryani | D17: Jakarta | E17: Indonesia | F17: F | G17: 1969-05-21 | H17: SM
A18: Muhamad Mardiono | D18: Jakarta | E18: Indonesia | F18: M | G18: 1957-07-11 | H18: SM
A19: Muljadi Tjahjono | D19: Jakarta | E19: Indonesia | F19: M | G19: 1965-07-22 | H19: SM
A20: Nyoman Adhi Suryadnyana | D20: Jakarta | E20: Indonesia | F20: M | G20: 1974-10-15 | H20: SBL
A21: Romyus Permana | D21: Jakarta | E21: Indonesia | F21: M | G21: 1978-10-20 | H21: SBL
A22: Salim Lan Jaya Liem | D22: Jakarta | E22: Indonesia | F22: M | G22: 1971-06-01 | H22: SM
A23: Samuel Bob | D23: Jakarta | E23: Indonesia | F23: M | G23: 1974-01-04 | H23: SM
A24: Samuel Rusli | D24: Jakarta | E24: Indonesia | F24: M | G24: 1968-04-01 | H24: SM
A25: Shanti Tan | D25: Jakarta | E25: Indonesia | F25: F | G25: 1978-09-10 | H25: SBL
A26: Shu Shu | D26: Jakarta | E26: Indonesia | F26: F | H26: SBL
A27: Sri Wahyuswinta | D27: Jakarta | E27: Indonesia | F27: F | G27: 1969-04-04 | H27: SM
A28: Tan Kim Siong | D28: Jakarta | E28: Indonesia | F28: M | G28: 1970-11-09 | H28: SM
A29: Tan Siew Chang | D29: Jakarta | E29: Indonesia | F29: F | G29: 1967-01-13 | H29: SM
A30: Titi Salim | D30: Jakarta | E30: Indonesia | F30: M | G30: 1971-06-01 | H30: SBL
A31: Wahyu Widada | D31: Jakarta | E31: Indonesia | F31: M | G31: 1969-09-11 | H31: SM
A32: Wisnu Hermawan | D32: Jakarta | E32: Indonesia | F32: M | G32: 1972-02-16 | H32: SM
A33: Yenni Rista S | D33: Jakarta | E33: Indonesia | F33: F | G33: 1958-07-18 | H33: SBL
A34: Yenny Wijaya | D34: Jakarta | E34: Indonesia | F34: F | G34: 1973-03-16 | H34: SM
A35: Yuldi Yusman | D35: Jakarta | E35: Indonesia | F35: M | G35: 1975-07-29 | H35: SM
A36: Yulia Gunawan | D36: Jakarta | E36: Indonesia | F36: F | G36: 1983-01-06 | H36: SM
A37: Ita Yuliati | D37: Jakarta | E37: Indonesia | F37: F | G37: 1960-07-30 | H37: SBL
A38: Doni Irawan Soenarso | D38: Jakarta | E38: Indonesia | F38: M | G38: 1960-09-13 | H38: SBL
A39: Ken Anjani | D39: Jakarta | E39: Indonesia | F39: F | G39: 1989-09-11 | H39: SBL
A40: Vino Romano | D40: Jakarta | E40: Indonesia | F40: M | G40: 1988-11-11 | H40: SBL
A41: Mouna F. Said | D41: Jakarta | E41: Indonesia | F41: F | G41: 1975-09-25 | H41: SBL
A42: Tschun Tschun | D42: Jakarta | E42: Indonesia | H42: SBL
A43: Cun | D43: Jakarta | E43: Indonesia | H43: SBL
A44: Samuel | D44: Jakarta | E44: Indonesia | H44: SBL
A45: Gadiza | D45: Jakarta | E45: Indonesia | H45: SBL
A46: Adit | D46: Jakarta | E46: Indonesia | H46: SBL
A47: HH | D47: Jakarta | E47: Indonesia | H47: SBL
A48: Retina | D48: Jakarta | E48: Indonesia | H48: SBL
A49: Theresia | D49: Jakarta | E49: Indonesia | H49: SBL

Sheet Theresia
A3: Invoice: 55H-92401004
A4: 04.02.2024
A9: Mrs. Theresia
A10: Jakarta
A11: Indonesia
A14: Description | B14: Qty | C14: Price | D14: Amount
A15: Patient: Theresia, ,
A17: Repatha | B17: 3 | C17: =IFERROR(VLOOKUP(A17,'Services-Produits'!A1:B119,2,FALSE),"") -> 233.55 | D17: =IFERROR(B17*C17,"") -> 700.65
A18: Omega 7 | B18: 2 | C18: =IFERROR(VLOOKUP(A18,'Services-Produits'!A2:B120,2,FALSE),"") -> 82.6 | D18: =IFERROR(B18*C18,"") -> 165.2
A19: Protokoll Lösung 1 | B19: 1 | C19: =IFERROR(VLOOKUP(A19,'Services-Produits'!A3:B121,2,FALSE),"") -> 147.2 | D19: 147.2
A20: Spermidin | B20: 1 | C20: =IFERROR(VLOOKUP(A20,'Services-Produits'!A4:B122,2,FALSE),"") -> 182.35 | D20: 182.35
A21: Hydroxiprolin | B21: 1 | C21: =IFERROR(VLOOKUP(A21,'Services-Produits'!A5:B123,2,FALSE),"") -> 68.9 | D21: 68.9
A22: Black cumin capsules | B22: 1 | C22: =IFERROR(VLOOKUP(A22,'Services-Produits'!A6:B124,2,FALSE),"") -> 34.8 | D22: 34.8
A23: Microbiome body lotion | B23: 5 | C23: =IFERROR(VLOOKUP(A23,'Services-Produits'!A7:B125,2,FALSE),"") -> 29.9 | D23: 149.5
A24: Microniome face serum | B24: 4 | C24: =IFERROR(VLOOKUP(A24,'Services-Produits'!A8:B126,2,FALSE),"") -> 69.9 | D24: 279.6
A25: Face cream | B25: 3 | C25: =IFERROR(VLOOKUP(A25,'Services-Produits'!A9:B127,2,FALSE),"") -> 0 | D25: 0
A26: Cleanser | B26: 5 | C26: =IFERROR(VLOOKUP(A26,'Services-Produits'!A10:B128,2,FALSE),"") -> 0 | D26: 0
A27: Oregano oil | B27: 2 | C27: =IFERROR(VLOOKUP(A27,'Services-Produits'!A11:B129,2,FALSE),"") -> 0 | D27: 0
A28: Immune infusion | B28: 2 | C28: =IFERROR(VLOOKUP(A28,'Services-Produits'!A12:B130,2,FALSE),"") -> 0 | D28: 0
C29: =IFERROR(VLOOKUP(A29,'Services-Produits'!A13:B131,2,FALSE),"") -> 
C30: =IFERROR(VLOOKUP(A30,'Services-Produits'!A14:B132,2,FALSE),"") -> 
C31: =IFERROR(VLOOKUP(A31,'Services-Produits'!A8:B126,2,FALSE),"") -> 
C32: =IFERROR(VLOOKUP(A32,'Services-Produits'!A9:B127,2,FALSE),"") -> 
C33: =IFERROR(VLOOKUP(A33,'Services-Produits'!A10:B128,2,FALSE),"") -> 
C34: =IFERROR(VLOOKUP(A34,'Services-Produits'!A11:B129,2,FALSE),"") -> 
C35: =IFERROR(VLOOKUP(A35,'Services-Produits'!A12:B130,2,FALSE),"") -> 
C36: =IFERROR(VLOOKUP(A36,'Services-Produits'!A13:B131,2,FALSE),"") -> 
C37: =IFERROR(VLOOKUP(A37,'Services-Produits'!A14:B132,2,FALSE),"") -> 
A38: Total in CHF | D38: =SUM(D17:D37) -> 1728.2
A40: Thank you very much for your trust!

Sheet Retina
A3: Invoice: 55H-92401004
A4: 04.02.2024
A9: Mrs. Retina
A10: Jakarta
A11: Indonesia
A14: Description | B14: Qty | C14: Price | D14: Amount
A15: Patient: Retina, ,
A17: Microcare | B17: 0 | C17: =IFERROR(VLOOKUP(A17,'Services-Produits'!A1:B119,2,FALSE),"") -> 0 | D17: =IFERROR(B17*C17,"") -> 0
A18: Xarelto | B18: 1 | C18: =IFERROR(VLOOKUP(A18,'Services-Produits'!A2:B120,2,FALSE),"") -> 42.15 | D18: =IFERROR(B18*C18,"") -> 42.15
C19: =IFERROR(VLOOKUP(A19,'Services-Produits'!A3:B121,2,FALSE),"") -> 
C20: =IFERROR(VLOOKUP(A20,'Services-Produits'!A4:B122,2,FALSE),"") -> 
C21: =IFERROR(VLOOKUP(A21,'Services-Produits'!A5:B123,2,FALSE),"") -> 
C22: =IFERROR(VLOOKUP(A22,'Services-Produits'!A6:B124,2,FALSE),"") -> 
C23: =IFERROR(VLOOKUP(A23,'Services-Produits'!A7:B125,2,FALSE),"") -> 
C24: =IFERROR(VLOOKUP(A24,'Services-Produits'!A8:B126,2,FALSE),"") -> 
C25: =IFERROR(VLOOKUP(A25,'Services-Produits'!A9:B127,2,FALSE),"") -> 
C26: =IFERROR(VLOOKUP(A26,'Services-Produits'!A10:B128,2,FALSE),"") -> 
C27: =IFERROR(VLOOKUP(A27,'Services-Produits'!A11:B129,2,FALSE),"") -> 
C28: =IFERROR(VLOOKUP(A28,'Services-Produits'!A12:B130,2,FALSE),"") -> 
C29: =IFERROR(VLOOKUP(A29,'Services-Produits'!A13:B131,2,FALSE),"") -> 
C30: =IFERROR(VLOOKUP(A30,'Services-Produits'!A14:B132,2,FALSE),"") -> 
C31: =IFERROR(VLOOKUP(A31,'Services-Produits'!A8:B126,2,FALSE),"") -> 
C32: =IFERROR(VLOOKUP(A32,'Services-Produits'!A9:B127,2,FALSE),"") -> 
C33: =IFERROR(VLOOKUP(A33,'Services-Produits'!A10:B128,2,FALSE),"") -> 
C34: =IFERROR(VLOOKUP(A34,'Services-Produits'!A11:B129,2,FALSE),"") -> 
C35: =IFERROR(VLOOKUP(A35,'Services-Produits'!A12:B130,2,FALSE),"") -> 
C36: =IFERROR(VLOOKUP(A36,'Services-Produits'!A13:B131,2,FALSE),"") -> 
C37: =IFERROR(VLOOKUP(A37,'Services-Produits'!A14:B132,2,FALSE),"") -> 
A38: Total in CHF | D38: =SUM(D17:D37) -> 42.15
A40: Thank you very much for your trust!

Sheet HH
A3: Invoice: 55H-92401004
A4: 04.02.2024
A9: Mrs. HH
A10: Jakarta
A11: Indonesia
A14: Description | B14: Qty | C14: Price | D14: Amount
A15: Patient: HH, ,
A17: Tamsulosin | B17: 5 | C17: =IFERROR(VLOOKUP(A17,'Services-Produits'!A1:B119,2,FALSE),"") -> 59.9 | D17: =IFERROR(B17*C17,"") -> 299.5
A18: Tadalafil-Mepha 10 mg | B18: 5 | C18: =IFERROR(VLOOKUP(A18,'Services-Produits'!A2:B120,2,FALSE),"") -> 115 | D18: =IFERROR(B18*C18,"") -> 575
C19: =IFERROR(VLOOKUP(A19,'Services-Produits'!A3:B121,2,FALSE),"") -> 
C20: =IFERROR(VLOOKUP(A20,'Services-Produits'!A4:B122,2,FALSE),"") -> 
C21: =IFERROR(VLOOKUP(A21,'Services-Produits'!A5:B123,2,FALSE),"") -> 
C22: =IFERROR(VLOOKUP(A22,'Services-Produits'!A6:B124,2,FALSE),"") -> 
C23: =IFERROR(VLOOKUP(A23,'Services-Produits'!A7:B125,2,FALSE),"") -> 
C24: =IFERROR(VLOOKUP(A24,'Services-Produits'!A8:B126,2,FALSE),"") -> 
C25: =IFERROR(VLOOKUP(A25,'Services-Produits'!A9:B127,2,FALSE),"") -> 
C26: =IFERROR(VLOOKUP(A26,'Services-Produits'!A10:B128,2,FALSE),"") -> 
C27: =IFERROR(VLOOKUP(A27,'Services-Produits'!A11:B129,2,FALSE),"") -> 
C28: =IFERROR(VLOOKUP(A28,'Services-Produits'!A12:B130,2,FALSE),"") -> 
C29: =IFERROR(VLOOKUP(A29,'Services-Produits'!A13:B131,2,FALSE),"") -> 
C30: =IFERROR(VLOOKUP(A30,'Services-Produits'!A14:B132,2,FALSE),"") -> 
C31: =IFERROR(VLOOKUP(A31,'Services-Produits'!A8:B126,2,FALSE),"") -> 
C32: =IFERROR(VLOOKUP(A32,'Services-Produits'!A9:B127,2,FALSE),"") -> 
C33: =IFERROR(VLOOKUP(A33,'Services-Produits'!A10:B128,2,FALSE),"") -> 
C34: =IFERROR(VLOOKUP(A34,'Services-Produits'!A11:B129,2,FALSE),"") -> 
C35: =IFERROR(VLOOKUP(A35,'Services-Produits'!A12:B130,2,FALSE),"") -> 
C36: =IFERROR(VLOOKUP(A36,'Services-Produits'!A13:B131,2,FALSE),"") -> 
C37: =IFERROR(VLOOKUP(A37,'Services-Produits'!A14:B132,2,FALSE),"") -> 
A38: Total in CHF | D38: =SUM(D17:D37) -> 874.5
A40: Thank you very much for your trust!

Sheet Adit
A3: Invoice: 55H-92401004
A4: 04.02.2024
A9: Mrs. Adit
A10: Jakarta
A11: Indonesia
A14: Description | B14: Qty | C14: Price | D14: Amount
A15: Patient: Adit, ,
A17: Microcare | B17: 0 | C17: =IFERROR(VLOOKUP(A17,'Services-Produits'!A1:B119,2,FALSE),"") -> 0 | D17: =IFERROR(B17*C17,"") -> 0
C18: =IFERROR(VLOOKUP(A18,'Services-Produits'!A2:B120,2,FALSE),"") ->  | D18: =IFERROR(B18*C18,"") -> 
C19: =IFERROR(VLOOKUP(A19,'Services-Produits'!A3:B121,2,FALSE),"") -> 
C20: =IFERROR(VLOOKUP(A20,'Services-Produits'!A4:B122,2,FALSE),"") -> 
C21: =IFERROR(VLOOKUP(A21,'Services-Produits'!A5:B123,2,FALSE),"") -> 
C22: =IFERROR(VLOOKUP(A22,'Services-Produits'!A6:B124,2,FALSE),"") -> 
C23: =IFERROR(VLOOKUP(A23,'Services-Produits'!A7:B125,2,FALSE),"") -> 
C24: =IFERROR(VLOOKUP(A24,'Services-Produits'!A8:B126,2,FALSE),"") -> 
C25: =IFERROR(VLOOKUP(A25,'Services-Produits'!A9:B127,2,FALSE),"") -> 
C26: =IFERROR(VLOOKUP(A26,'Services-Produits'!A10:B128,2,FALSE),"") -> 
C27: =IFERROR(VLOOKUP(A27,'Services-Produits'!A11:B129,2,FALSE),"") -> 
C28: =IFERROR(VLOOKUP(A28,'Services-Produits'!A12:B130,2,FALSE),"") -> 
C29: =IFERROR(VLOOKUP(A29,'Services-Produits'!A13:B131,2,FALSE),"") -> 
C30: =IFERROR(VLOOKUP(A30,'Services-Produits'!A14:B132,2,FALSE),"") -> 
C31: =IFERROR(VLOOKUP(A31,'Services-Produits'!A8:B126,2,FALSE),"") -> 
C32: =IFERROR(VLOOKUP(A32,'Services-Produits'!A9:B127,2,FALSE),"") -> 
C33: =IFERROR(VLOOKUP(A33,'Services-Produits'!A10:B128,2,FALSE),"") -> 
C34: =IFERROR(VLOOKUP(A34,'Services-Produits'!A11:B129,2,FALSE),"") -> 
C35: =IFERROR(VLOOKUP(A35,'Services-Produits'!A12:B130,2,FALSE),"") -> 
C36: =IFERROR(VLOOKUP(A36,'Services-Produits'!A13:B131,2,FALSE),"") -> 
C37: =IFERROR(VLOOKUP(A37,'Services-Produits'!A14:B132,2,FALSE),"") -> 
A38: Total in CHF | D38: =SUM(D17:D37) -> 0
A40: Thank you very much for your trust!

Sheet Gadiza
A3: Invoice: 55H-92401004
A4: 04.02.2024
A9: Mrs. Gadiza
A10: Jakarta
A11: Indonesia
A14: Description | B14: Qty | C14: Price | D14: Amount
A15: Patient: Gadiza, ,
A17: Epinativ Injection | B17: 3 | C17: =IFERROR(VLOOKUP(A17,'Services-Produits'!A1:B119,2,FALSE),"") -> 133.61 | D17: =IFERROR(B17*C17,"") -> 400.83
A18: Curcumin 150 mg | B18: 1 | C18: =IFERROR(VLOOKUP(A18,'Services-Produits'!A2:B120,2,FALSE),"") -> 229.2 | D18: =IFERROR(B18*C18,"") -> 229.2
A19: Riboflavin | B19: 1 | C19: =IFERROR(VLOOKUP(A19,'Services-Produits'!A3:B121,2,FALSE),"") -> 127.4 | D19: 127.4
C20: =IFERROR(VLOOKUP(A20,'Services-Produits'!A4:B122,2,FALSE),"") -> 
C21: =IFERROR(VLOOKUP(A21,'Services-Produits'!A5:B123,2,FALSE),"") -> 
C22: =IFERROR(VLOOKUP(A22,'Services-Produits'!A6:B124,2,FALSE),"") -> 
C23: =IFERROR(VLOOKUP(A23,'Services-Produits'!A7:B125,2,FALSE),"") -> 
C24: =IFERROR(VLOOKUP(A24,'Services-Produits'!A8:B126,2,FALSE),"") -> 
C25: =IFERROR(VLOOKUP(A25,'Services-Produits'!A9:B127,2,FALSE),"") -> 
C26: =IFERROR(VLOOKUP(A26,'Services-Produits'!A10:B128,2,FALSE),"") -> 
C27: =IFERROR(VLOOKUP(A27,'Services-Produits'!A11:B129,2,FALSE),"") -> 
C28: =IFERROR(VLOOKUP(A28,'Services-Produits'!A12:B130,2,FALSE),"") -> 
C29: =IFERROR(VLOOKUP(A29,'Services-Produits'!A13:B131,2,FALSE),"") -> 
C30: =IFERROR(VLOOKUP(A30,'Services-Produits'!A14:B132,2,FALSE),"") -> 
C31: =IFERROR(VLOOKUP(A31,'Services-Produits'!A8:B126,2,FALSE),"") -> 
C32: =IFERROR(VLOOKUP(A32,'Services-Produits'!A9:B127,2,FALSE),"") -> 
C33: =IFERROR(VLOOKUP(A33,'Services-Produits'!A10:B128,2,FALSE),"") -> 
C34: =IFERROR(VLOOKUP(A34,'Services-Produits'!A11:B129,2,FALSE),"") -> 
C35: =IFERROR(VLOOKUP(A35,'Services-Produits'!A12:B130,2,FALSE),"") -> 
C36: =IFERROR(VLOOKUP(A36,'Services-Produits'!A13:B131,2,FALSE),"") -> 
C37: =IFERROR(VLOOKUP(A37,'Services-Produits'!A14:B132,2,FALSE),"") -> 
A38: Total in CHF | D38: =SUM(D17:D37) -> 757.43
A40: Thank you very much for your trust!

Sheet Cun
A3: Invoice: 55H-9240100X
A4: 29.01.2024
A9: Mrs. Cun
A10: Jakarta
A11: Indonesia
A14: Description | B14: Qty | C14: Price | D14: Amount
A15: Patient: Cun, ,
A17: Microcare | B17: 0 | C17: =IFERROR(VLOOKUP(A17,'Services-Produits'!A1:B119,2,FALSE),"") -> 0 | D17: =IFERROR(B17*C17,"") -> 0
A18: Cholin Inject | B18: 1 | C18: =IFERROR(VLOOKUP(A18,'Services-Produits'!A2:B120,2,FALSE),"") -> 43 | D18: =IFERROR(B18*C18,"") -> 43
C19: =IFERROR(VLOOKUP(A19,'Services-Produits'!A3:B121,2,FALSE),"") -> 
C20: =IFERROR(VLOOKUP(A20,'Services-Produits'!A4:B122,2,FALSE),"") -> 
C21: =IFERROR(VLOOKUP(A21,'Services-Produits'!A5:B123,2,FALSE),"") -> 
C22: =IFERROR(VLOOKUP(A22,'Services-Produits'!A6:B124,2,FALSE),"") -> 
C23: =IFERROR(VLOOKUP(A23,'Services-Produits'!A7:B125,2,FALSE),"") -> 
C24: =IFERROR(VLOOKUP(A24,'Services-Produits'!A8:B126,2,FALSE),"") -> 
C25: =IFERROR(VLOOKUP(A25,'Services-Produits'!A9:B127,2,FALSE),"") -> 
C26: =IFERROR(VLOOKUP(A26,'Services-Produits'!A10:B128,2,FALSE),"") -> 
C27: =IFERROR(VLOOKUP(A27,'Services-Produits'!A11:B129,2,FALSE),"") -> 
C28: =IFERROR(VLOOKUP(A28,'Services-Produits'!A12:B130,2,FALSE),"") -> 
C29: =IFERROR(VLOOKUP(A29,'Services-Produits'!A13:B131,2,FALSE),"") -> 
C30: =IFERROR(VLOOKUP(A30,'Services-Produits'!A14:B132,2,FALSE),"") -> 
C31: =IFERROR(VLOOKUP(A31,'Services-Produits'!A8:B126,2,FALSE),"") -> 
C32: =IFERROR(VLOOKUP(A32,'Services-Produits'!A9:B127,2,FALSE),"") -> 
C33: =IFERROR(VLOOKUP(A33,'Services-Produits'!A10:B128,2,FALSE),"") -> 
C34: =IFERROR(VLOOKUP(A34,'Services-Produits'!A11:B129,2,FALSE),"") -> 
C35: =IFERROR(VLOOKUP(A35,'Services-Produits'!A12:B130,2,FALSE),"") -> 
C36: =IFERROR(VLOOKUP(A36,'Services-Produits'!A13:B131,2,FALSE),"") -> 
C37: =IFERROR(VLOOKUP(A37,'Services-Produits'!A14:B132,2,FALSE),"") -> 
A38: Total in CHF | D38: =SUM(D17:D37) -> 43
A40: Thank you very much for your trust!

Sheet Samuel
A3: Invoice: 55H-9240100X
A4: 04.02.2024
A9: Mrs. Samuel
A10: Jakarta
A11: Indonesia
A14: Description | B14: Qty | C14: Price | D14: Amount
A15: Patient: Samuel, ,
A17: Microcare | B17: 0 | C17: =IFERROR(VLOOKUP(A17,'Services-Produits'!A1:B119,2,FALSE),"") -> 0 | D17: =IFERROR(B17*C17,"") -> 0
A18: Bactoflor | B18: 1 | C18: =IFERROR(VLOOKUP(A18,'Services-Produits'!A2:B120,2,FALSE),"") -> 47.8 | D18: =IFERROR(B18*C18,"") -> 47.8
C19: =IFERROR(VLOOKUP(A19,'Services-Produits'!A3:B121,2,FALSE),"") -> 
C20: =IFERROR(VLOOKUP(A20,'Services-Produits'!A4:B122,2,FALSE),"") -> 
C21: =IFERROR(VLOOKUP(A21,'Services-Produits'!A5:B123,2,FALSE),"") -> 
C22: =IFERROR(VLOOKUP(A22,'Services-Produits'!A6:B124,2,FALSE),"") -> 
C23: =IFERROR(VLOOKUP(A23,'Services-Produits'!A7:B125,2,FALSE),"") -> 
C24: =IFERROR(VLOOKUP(A24,'Services-Produits'!A8:B126,2,FALSE),"") -> 
C25: =IFERROR(VLOOKUP(A25,'Services-Produits'!A9:B127,2,FALSE),"") -> 
C26: =IFERROR(VLOOKUP(A26,'Services-Produits'!A10:B128,2,FALSE),"") -> 
C27: =IFERROR(VLOOKUP(A27,'Services-Produits'!A11:B129,2,FALSE),"") -> 
C28: =IFERROR(VLOOKUP(A28,'Services-Produits'!A12:B130,2,FALSE),"") -> 
C29: =IFERROR(VLOOKUP(A29,'Services-Produits'!A13:B131,2,FALSE),"") -> 
C30: =IFERROR(VLOOKUP(A30,'Services-Produits'!A14:B132,2,FALSE),"") -> 
C31: =IFERROR(VLOOKUP(A31,'Services-Produits'!A8:B126,2,FALSE),"") -> 
C32: =IFERROR(VLOOKUP(A32,'Services-Produits'!A9:B127,2,FALSE),"") -> 
C33: =IFERROR(VLOOKUP(A33,'Services-Produits'!A10:B128,2,FALSE),"") -> 
C34: =IFERROR(VLOOKUP(A34,'Services-Produits'!A11:B129,2,FALSE),"") -> 
C35: =IFERROR(VLOOKUP(A35,'Services-Produits'!A12:B130,2,FALSE),"") -> 
C36: =IFERROR(VLOOKUP(A36,'Services-Produits'!A13:B131,2,FALSE),"") -> 
C37: =IFERROR(VLOOKUP(A37,'Services-Produits'!A14:B132,2,FALSE),"") -> 
A38: Total in CHF | D38: =SUM(D17:D37) -> 47.8
A40: Thank you very much for your trust!

Sheet Dobias Iskandar
A3: Invoice: 55H-92401005
A4: 29.01.2024
A9: Mr. Dobias Iskandar
A10: Jakarta
A11: Indonesia
A14: Description | B14: Qty | C14: Price | D14: Amount
A15: Patient: Dobias Iskandar, M, 16.11.1965
A17: Cholin Inject | B17: 10 | C17: =IFERROR(VLOOKUP(A17,'Services-Produits'!A1:B119,2,FALSE),"") -> 43 | D17: =IFERROR(B17*C17,"") -> 430
A18: Microbiome | B18: 5 | C18: =IFERROR(VLOOKUP(A18,'Services-Produits'!A2:B120,2,FALSE),"") -> 74.95 | D18: =IFERROR(B18*C18,"") -> 374.75
A19: Omega 7 | B19: 1 | C19: =IFERROR(VLOOKUP(A19,'Services-Produits'!A3:B121,2,FALSE),"") -> 82.6 | D19: 82.6
A20: Tadalafil-Mepha 10 mg | B20: 5 | C20: =IFERROR(VLOOKUP(A20,'Services-Produits'!A4:B122,2,FALSE),"") -> 115 | D20: 575
A21: Jardiance | C21: =IFERROR(VLOOKUP(A21,'Services-Produits'!A5:B123,2,FALSE),"") -> 662.8 | D21: 0
C22: =IFERROR(VLOOKUP(A22,'Services-Produits'!A6:B124,2,FALSE),"") -> 
C23: =IFERROR(VLOOKUP(A23,'Services-Produits'!A7:B125,2,FALSE),"") -> 
C24: =IFERROR(VLOOKUP(A24,'Services-Produits'!A8:B126,2,FALSE),"") -> 
C25: =IFERROR(VLOOKUP(A25,'Services-Produits'!A9:B127,2,FALSE),"") -> 
C26: =IFERROR(VLOOKUP(A26,'Services-Produits'!A10:B128,2,FALSE),"") -> 
C27: =IFERROR(VLOOKUP(A27,'Services-Produits'!A11:B129,2,FALSE),"") -> 
C28: =IFERROR(VLOOKUP(A28,'Services-Produits'!A12:B130,2,FALSE),"") -> 
C29: =IFERROR(VLOOKUP(A29,'Services-Produits'!A13:B131,2,FALSE),"") -> 
C30: =IFERROR(VLOOKUP(A30,'Services-Produits'!A14:B132,2,FALSE),"") -> 
C31: =IFERROR(VLOOKUP(A31,'Services-Produits'!A8:B126,2,FALSE),"") -> 
C32: =IFERROR(VLOOKUP(A32,'Services-Produits'!A9:B127,2,FALSE),"") -> 
C33: =IFERROR(VLOOKUP(A33,'Services-Produits'!A10:B128,2,FALSE),"") -> 
C34: =IFERROR(VLOOKUP(A34,'Services-Produits'!A11:B129,2,FALSE),"") -> 
C35: =IFERROR(VLOOKUP(A35,'Services-Produits'!A12:B130,2,FALSE),"") -> 
C36: =IFERROR(VLOOKUP(A36,'Services-Produits'!A13:B131,2,FALSE),"") -> 
C37: =IFERROR(VLOOKUP(A37,'Services-Produits'!A14:B132,2,FALSE),"") -> 
A38: Total in CHF | D38: =SUM(D17:D37) -> 1462.35
A40: Thank you very much for your trust!

Sheet Titi Salim
A3: Invoice: 55H-92401004
A4: 29.01.2024
A9: Mr. Titi Salim
A10: Jakarta
A11: Indonesia
A14: Description | B14: Qty | C14: Price | D14: Amount
A15: Patient: Titi Salim, M, 01.06.1971
A17: Microbiome | B17: 3 | C17: =IFERROR(VLOOKUP(A17,'Services-Produits'!A1:B119,2,FALSE),"") -> 74.95 | D17: =IFERROR(B17*C17,"") -> 224.85
A18: Microcare personalised | B18: 1 | C18: =IFERROR(VLOOKUP(A18,'Services-Produits'!A2:B120,2,FALSE),"") -> 0 | D18: =IFERROR(B18*C18,"") -> 0
A19: Omega 7 | B19: 1 | C19: =IFERROR(VLOOKUP(A19,'Services-Produits'!A3:B121,2,FALSE),"") -> 82.6 | D19: 82.6
A20: Abbott Freestyle libre | B20: 3 | C20: =IFERROR(VLOOKUP(A20,'Services-Produits'!A4:B122,2,FALSE),"") -> 91.4 | D20: 274.2
A21: Abbott Freestyle libre 2 sensor 14 days | B21: 72 | C21: =IFERROR(VLOOKUP(A21,'Services-Produits'!A5:B123,2,FALSE),"") -> 65.3 | D21: 4701.6
C22: =IFERROR(VLOOKUP(A22,'Services-Produits'!A6:B124,2,FALSE),"") -> 
C23: =IFERROR(VLOOKUP(A23,'Services-Produits'!A7:B125,2,FALSE),"") -> 
C24: =IFERROR(VLOOKUP(A24,'Services-Produits'!A8:B126,2,FALSE),"") -> 
C25: =IFERROR(VLOOKUP(A25,'Services-Produits'!A9:B127,2,FALSE),"") -> 
C26: =IFERROR(VLOOKUP(A26,'Services-Produits'!A10:B128,2,FALSE),"") -> 
C27: =IFERROR(VLOOKUP(A27,'Services-Produits'!A11:B129,2,FALSE),"") -> 
C28: =IFERROR(VLOOKUP(A28,'Services-Produits'!A12:B130,2,FALSE),"") -> 
C29: =IFERROR(VLOOKUP(A29,'Services-Produits'!A13:B131,2,FALSE),"") -> 
C30: =IFERROR(VLOOKUP(A30,'Services-Produits'!A14:B132,2,FALSE),"") -> 
C31: =IFERROR(VLOOKUP(A31,'Services-Produits'!A8:B126,2,FALSE),"") -> 
C32: =IFERROR(VLOOKUP(A32,'Services-Produits'!A9:B127,2,FALSE),"") -> 
C33: =IFERROR(VLOOKUP(A33,'Services-Produits'!A10:B128,2,FALSE),"") -> 
C34: =IFERROR(VLOOKUP(A34,'Services-Produits'!A11:B129,2,FALSE),"") -> 
C35: =IFERROR(VLOOKUP(A35,'Services-Produits'!A12:B130,2,FALSE),"") -> 
C36: =IFERROR(VLOOKUP(A36,'Services-Produits'!A13:B131,2,FALSE),"") -> 
C37: =IFERROR(VLOOKUP(A37,'Services-Produits'!A14:B132,2,FALSE),"") -> 
A38: Total in CHF | D38: =SUM(D17:D37) -> 5283.25
A40: Thank you very much for your trust!

Sheet Test 2 pages
A1: 5346
A3: Invoice: 55H-0231115
A4: 23.12.2023
C5: Treatment by | E5: Description | F5: Qty | G5: Price | H5: Amount
C6: Dr. Roger Gmür | E6: Patient: Deddy Prasetyo, M, 26.07.1968
C7: Zürich
E8: Gut Microbiome Therapy | F8: 4 | G8: =IFERROR(VLOOKUP(E8,'Services-Produits'!#REF!,2,FALSE),"") ->  | H8: =IFERROR(F8*G8,"") -> 
A9: Mr. Deddy Prasetyo | E9: curcumin 75 mg | F9: 1 | G9: =IFERROR(VLOOKUP(E9,'Services-Produits'!#REF!,2,FALSE),"") ->  | H9: =IFERROR(F9*G9,"") -> 
A10: Jakarta | E10: Bosvene Akba | F10: 1 | G10: =IFERROR(VLOOKUP(E10,'Services-Produits'!#REF!,2,FALSE),"") -> 
A11: Indonesia | E11: Gynophilus | F11: 1 | G11: =IFERROR(VLOOKUP(E11,'Services-Produits'!#REF!,2,FALSE),"") -> 
G12: =IFERROR(VLOOKUP(E12,'Services-Produits'!#REF!,2,FALSE),"") -> 
G13: =IFERROR(VLOOKUP(E13,'Services-Produits'!#REF!,2,FALSE),"") -> 
A14: Description | B14: Qty | C14: Price | D14: Amount | G14: =IFERROR(VLOOKUP(E14,'Services-Produits'!#REF!,2,FALSE),"") -> 
A15: Patient: Deddy Prasetyo, M, 26.07.1968 | G15: =IFERROR(VLOOKUP(E15,'Services-Produits'!#REF!,2,FALSE),"") -> 
G16: =IFERROR(VLOOKUP(E16,'Services-Produits'!#REF!,2,FALSE),"") -> 
A17: Gut Microbiome Therapy | B17: 4 | C17: =IFERROR(VLOOKUP(A17,'Services-Produits'!A1:B119,2,FALSE),"") -> 6912.5 | D17: =IFERROR(B17*C17,"") -> 27650 | G17: =IFERROR(VLOOKUP(E17,'Services-Produits'!E1:F119,2,FALSE),"") -> 
A18: curcumin 75 mg | B18: 1 | C18: =IFERROR(VLOOKUP(A18,'Services-Produits'!A2:B120,2,FALSE),"") -> 116.22 | D18: =IFERROR(B18*C18,"") -> 116.22 | G18: =IFERROR(VLOOKUP(E18,'Services-Produits'!E2:F120,2,FALSE),"") -> 
A19: Bosvene Akba | B19: 1 | C19: =IFERROR(VLOOKUP(A19,'Services-Produits'!A3:B121,2,FALSE),"") -> 215.11 | D19: 215.11 | G19: =IFERROR(VLOOKUP(E19,'Services-Produits'!E3:F121,2,FALSE),"") -> 
A20: Gynophilus | B20: 1 | C20: =IFERROR(VLOOKUP(A20,'Services-Produits'!A4:B122,2,FALSE),"") -> 19.8 | D20: 19.8 | G20: =IFERROR(VLOOKUP(E20,'Services-Produits'!E4:F122,2,FALSE),"") -> 
A21: Microbiome | B21: 8 | C21: =IFERROR(VLOOKUP(A21,'Services-Produits'!A5:B123,2,FALSE),"") -> 74.95 | D21: 599.6 | G21: =IFERROR(VLOOKUP(E21,'Services-Produits'!E5:F123,2,FALSE),"") -> 
A22: Vit, B Komplex | B22: 1 | C22: =IFERROR(VLOOKUP(A22,'Services-Produits'!A6:B124,2,FALSE),"") -> 46.8 | D22: 46.8 | G22: =IFERROR(VLOOKUP(E22,'Services-Produits'!#REF!,2,FALSE),"") -> 
A23: Fermanose | B23: 2 | C23: =IFERROR(VLOOKUP(A23,'Services-Produits'!A7:B125,2,FALSE),"") -> 46.2 | D23: 92.4 | G23: =IFERROR(VLOOKUP(E23,'Services-Produits'!#REF!,2,FALSE),"") -> 
A24: Fermanose | B24: 6 | C24: =IFERROR(VLOOKUP(A24,'Services-Produits'!A8:B126,2,FALSE),"") -> 46.2 | D24: 277.2 | G24: =IFERROR(VLOOKUP(E24,'Services-Produits'!E1:F119,2,FALSE),"") -> 
A25: Oliphenolia | B25: 1 | C25: =IFERROR(VLOOKUP(A25,'Services-Produits'!A9:B127,2,FALSE),"") -> 183.51 | D25: 183.51 | G25: =IFERROR(VLOOKUP(E25,'Services-Produits'!E2:F120,2,FALSE),"") -> 
C26: =IFERROR(VLOOKUP(A26,'Services-Produits'!A10:B128,2,FALSE),"") ->  | G26: =IFERROR(VLOOKUP(E26,'Services-Produits'!E3:F121,2,FALSE),"") -> 
C27: =IFERROR(VLOOKUP(A27,'Services-Produits'!A11:B129,2,FALSE),"") ->  | G27: =IFERROR(VLOOKUP(E27,'Services-Produits'!E4:F122,2,FALSE),"") -> 
B28: 6 | C28: =IFERROR(VLOOKUP(A28,'Services-Produits'!A12:B130,2,FALSE),"") ->  | G28: =IFERROR(VLOOKUP(E28,'Services-Produits'!E5:F123,2,FALSE),"") -> 
B29: 1 | C29: =IFERROR(VLOOKUP(A29,'Services-Produits'!A13:B131,2,FALSE),"") ->  | E29: Total in CHF | H29: =SUM(H8:H28) -> 0
B30: 1 | C30: =IFERROR(VLOOKUP(A30,'Services-Produits'!A14:B132,2,FALSE),"") -> 
C31: =IFERROR(VLOOKUP(A31,'Services-Produits'!A8:B126,2,FALSE),"") ->  | E31: Thank you very much for your trust!
B32: 1 | C32: =IFERROR(VLOOKUP(A32,'Services-Produits'!A9:B127,2,FALSE),"") -> 
B33: 8 | C33: =IFERROR(VLOOKUP(A33,'Services-Produits'!A10:B128,2,FALSE),"") -> 
B34: 1 | C34: =IFERROR(VLOOKUP(A34,'Services-Produits'!A11:B129,2,FALSE),"") -> 
B35: 2 | C35: =IFERROR(VLOOKUP(A35,'Services-Produits'!A12:B130,2,FALSE),"") -> 
B36: 9 | C36: =IFERROR(VLOOKUP(A36,'Services-Produits'!A13:B131,2,FALSE),"") -> 
C38: =IFERROR(VLOOKUP(A38,'Services-Produits'!A14:B132,2,FALSE),"") -> 
A39: Total in CHF | D39: =SUM(D17:D38) -> 29200.64

Sheet Ita Yuliati
A3: Invoice: 55H-92401001
A4: 29.01.2024
A9: Mrs. Ita Yuliati
A10: Jakarta
A11: Indonesia
A14: Description | B14: Qty | C14: Price | D14: Amount
A15: Patient: Ita Yuliati, F, 30.07.1960
A17: Gut Microbiome Therapy | B17: 4 | C17: =IFERROR(VLOOKUP(A17,'[1]Services-Produits'!A1:B120,2,FALSE),"") -> 7199.75 | D17: =IFERROR(B17*C17,"") -> 28799
A19: Infusion:
A20: Curcumin 150 mg | B20: 1 | C20: =IFERROR(VLOOKUP(A20,'[1]Services-Produits'!A3:B122,2,FALSE),"") -> 229.2 | D20: =IFERROR(B20*C20,"") -> 229.2
A21: Hypericin | B21: 1 | C21: =IFERROR(VLOOKUP(A21,'[1]Services-Produits'!A4:B123,2,FALSE),"") -> 198.7 | D21: 198.7
A22: Spermidin | B22: 1 | C22: =IFERROR(VLOOKUP(A22,'[1]Services-Produits'!A5:B124,2,FALSE),"") -> 182.35 | D22: 182.35
C23: =IFERROR(VLOOKUP(A23,'[1]Services-Produits'!A6:B125,2,FALSE),"") -> 
A24: Patient: Doni Irawan Soenarso, M, 13.19.1960 | C24: =IFERROR(VLOOKUP(A24,'[1]Services-Produits'!A7:B126,2,FALSE),"") -> 
A25: Gut Microbiome Therapy | B25: 4 | C25: =IFERROR(VLOOKUP(A25,'[1]Services-Produits'!A8:B127,2,FALSE),"") -> 7199.75 | D25: 28799
A27: Infusion:
A28: Curcumin 150 mg | B28: 4 | C28: =IFERROR(VLOOKUP(A28,'[1]Services-Produits'!A10:B129,2,FALSE),"") -> 229.2 | D28: 916.8
A29: Hypericin | B29: 1 | C29: =IFERROR(VLOOKUP(A29,'[1]Services-Produits'!A11:B130,2,FALSE),"") -> 198.7 | D29: 198.7
C30: =IFERROR(VLOOKUP(A30,'[1]Services-Produits'!A12:B131,2,FALSE),"") -> 
A31: Supplement & Medication:
A32: Microbiome | B32: 1 | C32: =IFERROR(VLOOKUP(A32,'[1]Services-Produits'!A14:B133,2,FALSE),"") -> 74.95 | D32: 74.95
A33: Tadalafil-Mepha 2.5 mg | B33: 2 | C33: =IFERROR(VLOOKUP(A33,'[1]Services-Produits'!A8:B127,2,FALSE),"") -> 115 | D33: 230
A34: Vit-C Intercell | B34: 1 | C34: =IFERROR(VLOOKUP(A34,'[1]Services-Produits'!A9:B128,2,FALSE),"") -> 27.99 | D34: 27.99
C35: =IFERROR(VLOOKUP(A35,'[1]Services-Produits'!A10:B129,2,FALSE),"") -> 
C36: =IFERROR(VLOOKUP(A36,'[1]Services-Produits'!A13:B132,2,FALSE),"") -> 
C37: =IFERROR(VLOOKUP(A37,'[1]Services-Produits'!A14:B133,2,FALSE),"") -> 
A38: Total in CHF | D38: =SUM(D17:D37) -> 59656.69
A40: Thank you very much for your trust!
A41: We appreciate, for a payment within 2 weeks.
